bitfinex-derivatives/quotes_SOLF0:USTF0_20250719
["timestamp","ask_amount","ask_price","bid_price","bid_amount"]
[1752921536993,4.6704267,177.41,177.4,8.7937]
[1752921537197,4.6704267,177.41,177.4,13.2059893]
[1752921538688,4.6704267,177.41,177.4,7.5722893]
[1752921541096,10.3039267,177.41,177.4,7.5722893]
[1752921541287,3.26,177.4,177.39,0.03651647]
[1752921541485,4.6704267,177.4,177.39,3.19651647]
[1752921542696,4.6704267,177.4,177.39,8.83071647]
[1752921542897,4.6704267,177.4,177.39,3.19651647]
[1752921544399,4.6704267,177.4,177.39,8.83071647]
[1752921544996,4.6704267,177.4,177.39,13.2552938]
[1752921545695,4.5104267,177.42,177.4,3.24]
[1752921545897,4.5104267,177.42,177.41,7.66457733]
[1752921547200,4.5104267,177.42,177.41,13.29807733]
[1752921548298,4.5104267,177.42,177.41,7.66457733]
[1752921548697,10.1436267,177.42,177.41,4.42457733]
[1752921548897,4.5104267,177.42,177.39,3.27651647]
[1752921549105,4.5104267,177.4,177.39,3.27651647]
[1752921549296,4.5104267,177.4,177.39,8.91071647]
[1752921550199,4.5104267,177.4,177.39,13.33483608]
[1752921550595,3.1,177.4,177.39,13.33483608]
[1752921550801,4.5104267,177.41,177.39,10.09483608]
[1752921551002,4.5104267,177.41,177.4,7.66411961]
[1752921551890,4.5104267,177.41,177.4,13.29791961]
[1752921557803,20.76226222,177.5,177.41,5.6335]
[1752921557804,3.1,177.42,177.41,5.6335]
[1752921558006,4.5104267,177.42,177.41,13.29761961]
[1752921559205,4.5104267,177.42,177.41,7.66411961]
[1752921561309,4.5104267,177.42,177.41,13.29761961]
[1752921561507,4.5104267,177.42,177.41,7.66411961]
[1752921565123,10.1436267,177.42,177.41,7.66411961]
[1752921565619,4.5104267,177.42,177.41,7.66411961]
[1752921567521,10.1436267,177.42,177.41,7.66411961]
[1752921569526,5.6329,177.44,177.41,7.66411961]
[1752921569725,1.4104267,177.43,177.42,3.24]
[1752921569925,1.4104267,177.43,177.42,7.6600436]
[1752921570125,1.4104267,177.43,177.42,13.2932436]
[1752921570523,4.5104267,177.43,177.42,13.2932436]
[1752921570725,3.1,177.43,177.42,13.2932436]
[1752921570925,1.4104267,177.44,177.43,8.8729]
[1752921571120,1.4104267,177.44,177.43,13.2929436]
[1752921571429,3.1,177.45,177.44,3.24]
[1752921571725,1.4104267,177.45,177.44,3.24]
[1752921571929,1.4104267,177.45,177.44,8.8726]
[1752921572120,1.4104267,177.45,177.44,3.24]
[1752921572930,4.5104267,177.45,177.44,3.24]
[1752921574120,1.4104267,177.45,177.44,3.24]
[1752921574628,1.4104267,177.45,177.44,8.8726]
[1752921574829,4.5104267,177.45,177.44,8.8726]
[1752921575425,3.1,177.45,177.44,8.8726]
[1752921576122,7.0426267,177.46,177.45,8.6423]
[1752921576123,4.6204267,177.46,177.45,8.6423]
[1752921576431,5.6317,177.47,177.45,8.6423]
[1752921576432,1.4104267,177.47,177.45,4.41629857]
[1752921576629,4.6204267,177.47,177.44,3.01]
[1752921576825,10.2521267,177.47,177.46,3.01]
[1752921577227,4.6204267,177.47,177.46,3.01]
[1752921577423,4.6204267,177.47,177.46,8.6419]
[1752921577630,4.6204267,177.47,177.46,3.01]
[1752921577828,3.21,177.5,177.46,3.01]
[1752921578030,1.4104267,177.48,177.47,8.6416]
[1752921578232,4.6204267,177.48,177.47,3.01]
[1752921579834,10.2517267,177.48,177.47,3.01]
[1752921584637,8.8416,177.47,177.46,0.03617949]
[1752921584838,10.2520267,177.47,177.46,0.03617949]
[1752921585236,10.2520267,177.47,177.46,3.04617949]
[1752921586138,8.8416,177.47,177.46,3.04617949]
[1752921586338,10.2520267,177.47,177.46,3.04617949]
[1752921586937,3.21,177.47,177.46,3.04617949]
[1752921587140,4.6204267,177.47,177.46,3.04617949]
[1752921588434,4.6204267,177.47,177.42,3.01]
[1752921588435,3.21,177.46,177.42,3.01]
[1752921588635,102.06,177.49,177.42,3.01]
[1752921588636,4.6204267,177.43,177.42,3.01]
[1752921589139,10.2533267,177.43,177.42,3.01]
[1752921589633,102.06,177.5,177.42,3.01]
[1752921589934,4.6204267,177.45,177.42,3.01]
[1752921590233,1.4104267,177.44,177.43,8.6427]
[1752921590838,4.6204267,177.44,177.43,8.6427]
[1752921591138,1.4104267,177.44,177.43,8.6427]
[1752921592241,4.6204267,177.44,177.43,8.6427]
[1752921592539,3.21,177.44,177.43,8.6427]
[1752921592740,4.6204267,177.44,177.43,8.6427]
[1752921596339,1.4104267,177.44,177.43,13.05715891]
[1752921596939,1.4104267,177.47,177.43,5.82488561]
[1752921597242,3.21,177.48,177.45,3.01]
[1752921597442,1.4104267,177.47,177.45,3.01]
[1752921597844,3.21,177.48,177.45,3.01]
[1752921598145,1.4104267,177.47,177.46,8.6418]
[1752921599545,4.6204267,177.47,177.46,8.6418]
[1752921600144,3.21,177.47,177.46,8.6418]
[1752921600345,4.6204267,177.48,177.47,8.6416]
[1752921600942,3.21,177.5,177.49,3.01]
[1752921601142,4.6204267,177.5,177.49,3.01]
[1752921601344,1.4104267,177.5,177.49,3.01]
[1752921601945,1.4104267,177.5,177.48,3.01]
[1752921602145,1.4104267,177.49,177.48,3.01]
[1752921602340,4.6204267,177.49,177.48,8.6413]
[1752921602546,4.6204267,177.49,177.48,3.01]
[1752921603048,3.21,177.49,177.48,3.01]
[1752921603249,4.6204267,177.49,177.48,3.01]
[1752921603741,4.6204267,177.49,177.48,8.6413]
[1752921604138,4.6204267,177.5,177.49,3.01]
[1752921604846,4.6204267,177.5,177.49,8.641]
[1752921605047,3.21,177.52,177.49,4.4604267]
[1752921605244,3.01,177.53,177.5,3.05]
[1752921605548,3.01,177.55,177.48,1.4104267]
[1752921605748,1.4104267,177.52,177.48,1.4104267]
[1752921605952,4.4204267,177.53,177.5,3.05]
[1752921606451,4.4204267,177.52,177.5,3.05]
[1752921606747,4.4204267,177.51,177.48,1.4104267]
[1752921606952,1.4104267,177.5,177.49,4.41479617]
[1752921607244,107.737,177.56,177.48,1.4104267]
[1752921607449,4.4204267,177.51,177.49,3.05]
[1752921607750,3.01,177.5,177.49,3.05]
[1752921608645,1.4104267,177.51,177.49,3.05]
[1752921608852,3.01,177.51,177.49,8.681]
[1752921609050,3.01,177.51,177.5,3.05]
[1752921609253,4.4204267,177.51,177.5,3.05]
[1752921609653,10.0508267,177.51,177.5,3.05]
[1752921609842,4.4204267,177.51,177.5,3.05]
[1752921610255,3.01,177.51,177.5,3.05]
[1752921611049,1.4104267,177.53,177.5,8.6807]
[1752921611250,4.4204267,177.53,177.5,4.4604267]
[1752921611552,4.4204267,177.53,177.51,8.6803]
[1752921611743,3.01,177.52,177.51,5.6303]
[1752921612346,4.4204267,177.53,177.51,8.6803]
[1752921612650,4.4204267,177.53,177.52,3.05]
[1752921613154,3.01,177.53,177.52,3.05]
[1752921613355,1.4104267,177.53,177.5,8.7162141]
[1752921613656,3.01,177.52,177.5,5.6662141]
[1752921613956,3.01,177.52,177.51,3.05]
[1752921615255,4.4204267,177.52,177.51,3.05]
[1752921615554,3.01,177.52,177.51,3.05]
[1752921618560,4.4204267,177.52,177.51,3.05]
[1752921620658,10.0504267,177.52,177.51,3.05]
[1752921621859,4.4204267,177.52,177.51,3.05]
[1752921624157,3.01,177.52,177.51,8.6804]
[1752921624358,3.01,177.54,177.51,8.6804]
[1752921624556,4.4204267,177.53,177.52,3.05]
[1752921625462,3.01,177.53,177.52,3.05]
[1752921627872,8.6397,177.53,177.52,3.05]
[1752921628665,10.0501267,177.53,177.52,3.05]
[1752921630262,3.01,177.52,177.51,3.05]
[1752921632972,10.0504267,177.52,177.51,3.05]
[1752921633174,4.4204267,177.52,177.51,3.05]
[1752921633768,3.01,177.52,177.51,3.05]
[1752921634375,8.64,177.52,177.51,3.05]
[1752921634976,10.0504267,177.52,177.51,3.05]
[1752921635171,8.6704,177.51,177.5,0.0356141]
[1752921635372,10.0808267,177.51,177.5,0.0356141]
[1752921637477,10.0808267,177.51,177.5,3.2556141]
[1752921639168,7.0405267,177.52,177.5,3.2556141]
[1752921639370,10.0805267,177.52,177.5,3.2556141]
[1752921639776,4.4504267,177.51,177.5,3.2556141]
[1752921641775,3.04,177.51,177.5,3.2556141]
[1752921641977,4.4504267,177.51,177.5,3.2556141]
[1752921644076,3.04,177.51,177.5,3.2556141]
[1752921644279,3.04,177.52,177.51,3.22]
[1752921644483,3.04,177.52,177.51,7.64495091]
[1752921644980,3.04,177.52,177.51,13.27515091]
[1752921645571,3.04,177.52,177.51,7.64495091]
[1752921647684,8.67,177.52,177.51,7.64495091]
[1752921648489,4.4504267,177.52,177.51,7.64495091]
[1752921649184,10.0804267,177.52,177.51,7.64495091]
[1752921649884,4.4504267,177.52,177.51,7.64495091]
[1752921650188,3.04,177.52,177.51,7.64495091]
[1752921650588,4.4504267,177.52,177.51,7.64495091]
[1752921650788,10.0804267,177.52,177.51,7.64495091]
[1752921651488,8.67,177.52,177.51,7.64495091]
[1752921651688,10.0804267,177.52,177.51,7.64495091]
[1752921652389,10.0804267,177.52,177.51,4.42495091]
[1752921652593,8.6704,177.51,177.5,0.0356141]
[1752921652890,10.0808267,177.51,177.5,0.0356141]
[1752921654181,10.0808267,177.51,177.5,3.2556141]
[1752921655485,8.6704,177.51,177.5,3.2556141]
[1752921655687,10.0808267,177.51,177.5,3.2556141]
[1752921656691,4.4504267,177.51,177.5,3.2556141]
[1752921657689,102.26,177.56,177.5,3.2556141]
[1752921657892,4.4504267,177.52,177.5,3.2556141]
[1752921658095,4.4504267,177.52,177.5,5.6661141]
[1752921658294,4.4504267,177.52,177.51,3.22]
[1752921658494,1.4104267,177.55,177.51,5.83904807]
[1752921658689,4.4504267,177.55,177.53,5.6295]
[1752921658894,4.4504267,177.55,177.54,3.22]
[1752921659893,9.47266147,177.63,177.54,3.22]
[1752921660093,1.4104267,177.61,177.57,1.4104267]
[1752921660296,1.4104267,177.59,177.57,3.22]
[1752921660495,3.04,177.59,177.57,3.22]
[1752921660692,3.04,177.58,177.57,3.22]
[1752921660888,3.04,177.58,177.57,7.64525656]
[1752921661290,4.4504267,177.58,177.55,3.22]
[1752921661492,1.4104267,177.57,177.55,3.22]
[1752921661698,3.04,177.55,177.52,1.4104267]
[1752921661900,3.04,177.54,177.53,3.22]
[1752921662396,7.0398267,177.54,177.53,3.22]
[1752921662603,3.04,177.53,177.51,3.22]
[1752921662901,3.04,177.53,177.52,3.22]
[1752921662902,10.0802267,177.53,177.52,3.22]
[1752921663306,10.0802267,177.53,177.52,2.31387749]
[1752921663603,10.0802267,177.53,177.52,7.87803062]
[1752921663804,10.0802267,177.53,177.52,7.87829037]
[1752921664396,102.94,177.59,177.52,12.50871707]
[1752921664602,3.04,177.56,177.54,3.22]
[1752921664809,4.4504267,177.56,177.54,3.22]
[1752921665105,3.04,177.56,177.54,3.22]
[1752921665300,3.19,177.58,177.54,3.22]
[1752921665603,8.8182,177.58,177.56,3.14]
[1752921666501,5.6282,177.58,177.56,3.14]
[1752921666706,8.8178,177.6,177.56,3.14]
[1752921667003,3.19,177.6,177.56,3.14]
[1752921667201,3.19,177.62,177.56,3.14]
[1752921667399,3.19,177.62,177.57,3.14]
[1752921667796,380.7382456,177.64,177.57,3.14]
[1752921667797,5.6277,177.6,177.57,3.14]
[1752921667998,8.8177,177.6,177.59,3.14]
[1752921670204,2.1982456,177.62,177.56,3.17595973]
[1752921670402,2.1982456,177.62,177.57,5.45011699]
[1752921670403,3.19,177.61,177.57,5.45011699]
[1752921670604,3.19,177.59,177.56,3.17595973]
[1752921670802,7.8264456,177.58,177.57,2.31006453]
[1752921671002,3.19,177.57,177.56,0.03595973]
[1752921671606,8.8185,177.57,177.56,0.03595973]
[1752921672099,11.0167456,177.57,177.56,0.03595973]
[1752921672909,8.8185,177.57,177.56,0.03595973]
[1752921673202,3.19,177.58,177.57,3.14]
[1752921673702,103.6,177.59,177.57,3.14]
[1752921674108,112.4178,177.59,177.57,3.14]
[1752921674310,112.4178,177.59,177.58,3.14]
[1752921674509,8.8178,177.59,177.58,3.14]
[1752921675709,3.19,177.59,177.58,3.14]
[1752921676109,3.19,177.61,177.58,3.14]
[1752921676311,3.19,177.61,177.58,8.7681]
[1752921676611,3.19,177.61,177.59,3.14]
[1752921677311,3.19,177.61,177.6,3.14]
[1752921678102,5.6271,177.62,177.6,3.14]
[1752921678309,3.19,177.62,177.61,3.14]
[1752921678911,106.87,177.63,177.61,3.14]
[1752921679212,3.19,177.63,177.61,3.14]
[1752921681113,3.19,177.63,177.62,3.14]
[1752921682119,8.8168,177.63,177.62,3.14]
[1752921682715,8.8166,177.63,177.62,3.14]
[1752921684516,3.19,177.61,177.6,3.14]
[1752921684816,8.817,177.62,177.6,3.14]
[1752921685417,5.6272,177.61,177.6,3.14]
[1752921685717,5.6272,177.61,177.54,3.14]
[1752921685718,3.19,177.6,177.54,3.14]
[1752921685917,8.8166,177.63,177.59,5.6276]
[1752921686114,8.8166,177.63,177.6,3.14]
[1752921686416,8.8164,177.64,177.6,5.6273]
[1752921686606,8.8164,177.64,177.61,3.14]
[1752921686910,5.6264,177.64,177.61,3.14]
[1752921687113,3.19,177.63,177.61,3.14]
[1752921687418,8.8166,177.63,177.61,3.14]
[1752921688218,3.19,177.66,177.62,3.14]
[1752921688419,5.3882456,177.66,177.62,3.14]
[1752921688620,3.19,177.65,177.62,3.14]
[1752921688818,8.816,177.65,177.63,3.14]
[1752921689219,3.19,177.66,177.63,3.14]
[1752921689414,109.037,177.69,177.53,15.96410754]
[1752921689415,111.2352456,177.69,177.64,3.14]
[1752921689616,3.19,177.68,177.64,3.14]
[1752921690021,3.19,177.66,177.64,3.14]
[1752921691016,3.19,177.66,177.61,2.1982456]
[1752921691017,8.8158,177.66,177.65,3.14]
[1752921691221,3.19,177.66,177.63,3.14]
[1752921691815,3.19,177.64,177.63,3.14]
[1752921696022,5.6261,177.65,177.63,3.14]
[1752921696222,3.08,177.63,177.62,0.03567157]
[1752921696813,8.7066,177.63,177.62,0.03567157]
[1752921697516,8.7066,177.63,177.62,3.28567157]
[1752921703623,3.08,177.63,177.62,3.28567157]
[1752921705018,5.6264,177.64,177.62,3.28567157]
[1752921705321,8.7066,177.63,177.62,3.28567157]
[1752921706322,3.08,177.63,177.62,3.28567157]
[1752921706926,8.7065,177.64,177.62,3.28567157]
[1752921707426,3.08,177.63,177.62,3.28567157]
[1752921708725,8.7066,177.63,177.62,3.28567157]
[1752921710329,3.08,177.63,177.62,3.28567157]
[1752921710528,3.08,177.63,177.62,0.03567157]
[1752921711028,8.7066,177.63,177.62,0.03567157]
[1752921711228,3.08,177.63,177.62,3.28567157]
[1752921712931,8.7064,177.64,177.62,3.28567157]
[1752921713530,3.08,177.63,177.62,3.28567157]
[1752921714135,3.08,177.63,177.62,5.60591167]
[1752921715932,8.7066,177.63,177.62,5.60591167]
[1752921716632,3.08,177.63,177.62,5.60591167]
[1752921718835,5.6264,177.64,177.62,2.35909272]
[1752921719131,8.7064,177.64,177.63,3.25]
[1752921719336,8.7064,177.64,177.63,2.32410687]
[1752921720128,5.6266,177.63,177.62,0.03567157]
[1752921720337,10.9048456,177.63,177.62,2.36010228]
[1752921722841,10.9048456,177.63,177.62,5.61010228]
[1752921723032,10.9048456,177.63,177.62,2.36010228]
[1752921723232,10.9048456,177.63,177.62,0.03567157]
[1752921723633,10.9048456,177.63,177.62,2.36223751]
[1752921723844,10.9048456,177.63,177.62,0.03567157]
[1752921724438,10.9048456,177.63,177.62,2.36254503]
[1752921724648,10.9048456,177.63,177.62,0.03567157]
[1752921725140,8.7075,177.6,177.59,3.25]
[1752921725344,8.7075,177.6,177.59,2.32755594]
[1752921725844,8.7075,177.6,177.59,5.46755594]
[1752921726138,8.7075,177.6,177.59,2.32755594]
[1752921727240,3.08,177.6,177.57,3.14]
[1752921727440,5.2782456,177.59,177.58,5.4573987]
[1752921727744,3.08,177.59,177.58,2.3173987]
[1752921727938,3.08,177.59,177.56,3.14]
[1752921728136,3.08,177.59,177.57,2.31772147]
[1752921728346,3.08,177.59,177.56,3.14]
[1752921728545,2.1982456,177.6,177.56,3.14]
[1752921728546,8.7083,177.58,177.57,2.31689364]
[1752921729252,8.7083,177.58,177.57,5.45689364]
[1752921730445,3.08,177.58,177.57,5.45689364]
[1752921731647,8.7082,177.58,177.57,5.45689364]
[1752921731853,10.9064456,177.58,177.57,3.14]
[1752921732053,3.08,177.57,177.51,3.14]
[1752921732250,5.6291,177.56,177.53,3.14]
[1752921732445,3.08,177.55,177.54,5.45711026]
[1752921733658,8.7091,177.55,177.54,5.45711026]
[1752921734351,8.7091,177.55,177.54,2.31711026]
[1752921734554,5.6297,177.53,177.52,3.14]
[1752921734853,2.1982456,177.56,177.52,2.31576188]
[1752921734854,3.08,177.54,177.52,2.31576188]
[1752921735053,8.7096,177.54,177.46,241.88577591]
[1752921735255,10.9078456,177.54,177.47,6.79740944]
[1752921735455,10.9078456,177.54,177.49,3.14]
[1752921735757,5.6298,177.53,177.51,3.14]
[1752921735957,8.7098,177.53,177.52,5.4557674]
[1752921736753,3.08,177.53,177.52,5.4557674]
[1752921736958,8.74543633,177.54,177.53,3.14]
[1752921737853,5.63,177.53,177.5,3.14]
[1752921738056,5.2782456,177.53,177.51,5.45292611]
[1752921738258,3.08,177.52,177.51,3.14]
[1752921738456,8.7101,177.52,177.51,5.45225085]
[1752921738759,8.7101,177.52,177.51,2.31225085]
[1752921738962,3.08,177.52,177.5,3.14]
[1752921739156,5.6306,177.51,177.5,3.14]
[1752921739456,8.7106,177.51,177.5,3.14]
[1752921739859,3.08,177.51,177.5,3.14]
[1752921740548,8.7104,177.51,177.5,3.14]
[1752921742959,3.08,177.51,177.5,3.14]
[1752921743456,5.6302,177.52,177.5,3.14]
[1752921744149,5.6304,177.51,177.5,3.14]
[1752921744353,2.1982456,177.53,177.5,3.14]
[1752921744555,3.08,177.52,177.5,3.14]
[1752921744956,2.1982456,177.53,177.5,3.14]
[1752921744957,8.7104,177.51,177.5,3.14]
[1752921747661,5.6302,177.52,177.5,3.14]
[1752921748261,8.7102,177.52,177.5,3.14]
[1752921749058,3.08,177.51,177.49,3.14]
[1752921749461,2.1982456,177.53,177.49,3.14]
[1752921749660,5.6306,177.51,177.49,3.14]
[1752921749860,3.08,177.51,177.49,3.14]
[1752921750963,5.6307,177.5,177.49,3.14]
[1752921752061,8.7107,177.5,177.49,3.14]
[1752921752261,5.6307,177.5,177.49,3.14]
[1752921754167,5.6311,177.49,177.48,3.14]
[1752921755065,5.6307,177.5,177.48,3.14]
[1752921755465,3.34547,177.52,177.48,3.14]
[1752921755866,5.6306,177.51,177.48,8.7712]
[1752921756067,5.6306,177.51,177.49,3.09]
[1752921758069,5.6306,177.51,177.49,8.7209]
[1752921758265,8.97567,177.52,177.5,3.09]
[1752921758672,5.66567,177.52,177.5,3.09]
[1752921759574,3.31,177.57,177.52,3.09]
[1752921759763,3.31,177.59,177.53,6.66769115]
[1752921759967,3.31,177.62,177.55,3.09]
[1752921760168,5.6278,177.6,177.55,2.1982456]
[1752921760373,3.31,177.62,177.56,3.09]
[1752921760563,8.9371,177.62,177.59,5.6278]
[1752921760768,8.9371,177.62,177.6,3.09]
[1752921760969,3.31,177.64,177.6,3.09]
[1752921761273,8.9368,177.63,177.61,3.09]
[1752921761471,8.9368,177.63,177.62,3.09]
[1752921763775,5.6272,177.61,177.56,2.1982456]
[1752921763973,3.31,177.61,177.57,3.09]
[1752921764774,3.31,177.63,177.57,3.09]
[1752921764974,3.31,177.61,177.58,3.09]
[1752921765169,5.6278,177.6,177.58,3.09]
[1752921765370,3.31,177.59,177.58,3.09]
[1752921765876,5.6278,177.6,177.58,3.09]
[1752921766073,8.9378,177.6,177.58,3.09]
[1752921766374,5.6278,177.6,177.58,3.09]
[1752921768774,5.6278,177.59,177.58,3.09]
[1752921768976,8.9378,177.59,177.58,3.09]
[1752921769372,5.6278,177.59,177.58,3.09]
[1752921769668,3.31,177.62,177.58,3.09]
[1752921769868,3.31,177.64,177.58,3.09]
[1752921770073,5.6274,177.61,177.59,3.09]
[1752921770375,3.31,177.63,177.59,3.09]
[1752921770871,5.5082456,177.65,177.59,3.09]
[1752921771065,3.31,177.64,177.59,3.09]
[1752921771873,8.9365,177.64,177.6,5.6272]
[1752921772174,8.9365,177.64,177.61,3.09]
[1752921772678,8.9365,177.64,177.61,8.7172]
[1752921772877,8.9365,177.64,177.62,3.09]
[1752921775378,3.31,177.64,177.62,3.09]
[1752921776276,8.9363,177.64,177.62,3.09]
[1752921776476,3.31,177.63,177.62,3.09]
[1752921777478,5.6263,177.64,177.62,3.09]
[1752921777878,8.9363,177.64,177.62,3.09]
[1752921778277,3.31,177.63,177.61,5.6271]
[1752921778778,3.31,177.63,177.62,3.09]
[1752921779570,8.9366,177.63,177.62,3.09]
[1752921781278,3.31,177.62,177.53,3.09]
[1752921781579,3.31,177.62,177.56,3.09]
[1752921781781,5.6275,177.6,177.57,5.6284]
[1752921781977,3.31,177.59,177.58,3.09]
[1752921782577,8.9373,177.61,177.58,8.7182]
[1752921782779,3.31,177.61,177.58,5.6282]
[1752921782977,3.31,177.61,177.58,8.7182]
[1752921783177,3.31,177.61,177.59,3.09]
[1752921783480,3.31,177.6,177.59,3.09]
[1752921783876,2.1982456,177.62,177.55,2.1982456]
[1752921783877,3.31,177.61,177.55,2.1982456]
[1752921784180,3.31,177.61,177.56,3.09]
[1752921784980,8.9372,177.61,177.58,5.628]
[1752921785280,8.9372,177.61,177.59,3.25]
[1752921785681,8.9372,177.61,177.59,8.8778]
[1752921785877,8.9372,177.61,177.6,3.25]
[1752921786182,3.31,177.61,177.6,3.25]
[1752921787381,3.31,177.61,177.56,3.25]
[1752921787679,3.07,177.63,177.56,3.25]
[1752921788481,5.6272,177.62,177.58,5.6279]
[1752921788684,3.07,177.61,177.59,3.25]
[1752921789179,3.07,177.61,177.59,8.8778]
[1752921789380,3.07,177.61,177.6,3.25]
[1752921792182,3.07,177.6,177.59,3.25]
[1752921793981,5.6272,177.61,177.58,3.91375683]
[1752921794179,3.07,177.59,177.58,3.91375683]
[1752921794483,3.07,177.61,177.59,5.6278]
[1752921794884,3.07,177.61,177.58,5.628]
[1752921795182,5.6268,177.63,177.55,2.1982456]
[1752921795383,3.07,177.62,177.59,5.6277]
[1752921795978,3.07,177.61,177.6,3.25]
[1752921801487,3.07,177.61,177.59,3.25]
[1752921803687,3.07,177.61,177.59,8.8777]
[1752921803989,3.07,177.61,177.59,3.25]
[1752921804384,3.07,177.61,177.6,4.48100206]
[1752921804796,3.07,177.61,177.6,7.73100206]
[1752921807690,8.6972,177.61,177.6,7.73100206]
[1752921809389,10.10322907,177.61,177.6,4.48100206]
[1752921811393,1.40602907,177.61,177.54,1.40602907]
[1752921811595,4.47602907,177.58,177.57,3.25]
[1752921811800,4.47602907,177.58,177.57,7.73199769]
[1752921815395,10.10422907,177.58,177.57,4.48199769]
[1752921815789,4.47602907,177.58,177.57,4.48199769]
[1752921815995,4.47602907,177.58,177.57,7.50199769]
[1752921816398,3.07,177.58,177.57,7.50199769]
[1752921818592,8.6982,177.58,177.57,4.48199769]
[1752921818794,1.40602907,177.58,177.55,3.02]
[1752921818997,3.29,177.57,177.56,4.47109615]
[1752921819197,8.9185,177.57,177.56,4.47109615]
[1752921819394,8.9185,177.57,177.56,7.49109615]
[1752921819595,3.29,177.57,177.56,7.49109615]
[1752921820694,3.29,177.57,177.56,3.02]
[1752921820899,3.29,177.57,177.56,7.49015276]
[1752921822198,3.32612233,177.58,177.57,3.02]
[1752921822398,3.32612233,177.58,177.57,7.49015276]
[1752921823899,8.95432233,177.58,177.57,7.49015276]
[1752921827605,3.32612233,177.58,177.57,7.49015276]
[1752921827902,0.03612233,177.58,177.57,7.49015276]
[1752921828500,0.03612233,177.58,177.57,13.11865276]
[1752921830107,3.32612233,177.58,177.57,13.11865276]
[1752921830300,3.32612233,177.58,177.57,7.49015276]
[1752921831202,3.32612233,177.58,177.57,13.11865276]
[1752921836609,3.32612233,177.58,177.57,7.49015276]
[1752921837706,3.32612233,177.58,177.57,13.11865276]
[1752921838319,3.32612233,177.58,177.57,10.09865276]
[1752921838518,3.32612233,177.58,177.57,7.49015276]
[1752921839415,3.32612233,177.58,177.57,13.11865276]
[1752921840210,8.95432233,177.58,177.57,4.47015276]
[1752921840915,10.3603514,177.58,177.57,4.47015276]
[1752921841317,10.3603514,177.58,177.57,7.49015276]
[1752921841517,0.03612233,177.58,177.57,7.49015276]
[1752921841715,0.03612233,177.58,177.57,8.89618183]
[1752921842021,0.03612233,177.58,177.57,14.52468183]
[1752921843020,3.32612233,177.58,177.57,14.52468183]
[1752921843917,3.32612233,177.58,177.57,13.11865276]
[1752921845917,0.03612233,177.58,177.57,13.11865276]
[1752921848218,3.35612233,177.58,177.57,13.11865276]
[1752921850724,0.03612233,177.58,177.57,13.11865276]
[1752921850924,3.32,177.6,177.59,8.8278]
[1752921851125,3.32,177.6,177.59,13.29795276]
[1752921856832,3.32,177.6,177.59,7.67015276]
[1752921857229,3.32,177.6,177.59,4.47015276]
[1752921857832,3.32,177.6,177.59,10.09795276]
[1752921859838,3.32,177.6,177.59,4.47015276]
[1752921861235,3.32,177.6,177.58,8.86381256]
[1752921861431,3.32,177.6,177.59,4.44152309]
[1752921862034,3.32,177.6,177.59,7.64152309]
[1752921862440,3.32,177.6,177.59,13.26932309]
[1752921866738,1.40602907,177.64,177.61,5.6271]
[1752921866933,1.40602907,177.64,177.62,3.2]
[1752921867334,1.40602907,177.64,177.63,7.63950343]
[1752921867631,0.97982628,177.7,177.64,3.2]
[1752921867632,1.40602907,177.65,177.64,3.2]
[1752921867935,1.40602907,177.67,177.65,3.2]
[1752921868433,7.03132907,177.67,177.63,3.2]
[1752921868638,1.40602907,177.65,177.63,3.2]
[1752921868839,3.32,177.64,177.63,3.2]